[Event "32nd Open Cappelle-la-Grande"]
[Site "Cappelle-la-Grande"]
[Date "2016.02.18"]
[Round "7"]
[White "Sasikiran, Krishnan"]
[Black "Delorme, Axel"]
[Result "1-0"]
[ECO "C93"]
[WhiteElo "2632"]
[BlackElo "2512"]
[PlyCount "77"]
[EventDate "2016.??.??"]
[EventCountry "FRA"]
[TimeControl "40/5400+30:1800+30"]

1. e4 {[%emt 0:03:41]} e5 {[%emt 0:00:00]} 2. Nf3 {[%emt 0:00:11]} Nc6 {
[%emt 0:00:00]} 3. Bb5 {[%emt 0:00:05]} a6 {[%emt 0:01:07]} 4. Ba4 {[%emt 0:00:
06]} Nf6 {[%emt 0:00:59]} 5. O-O {[%emt 0:00:07]} Be7 {[%emt 0:01:29]} 6. Re1 {
[%emt 0:00:12]} b5 {[%emt 0:00:51]} 7. Bb3 {[%emt 0:00:06]} d6 {[%emt 0:01:16]}
8. c3 {[%emt 0:00:06]} O-O {[%emt 0:00:06]} 9. h3 {[%emt 0:00:11]} Bb7 {
[%emt 0:02:48]} 10. d4 {[%emt 0:00:22]} Re8 {[%emt 0:00:21]} 11. Nbd2 {[%emt 0:
01:50]} Bf8 {[%emt 0:00:31]} 12. a3 {[%emt 0:04:38]} h6 {[%emt 0:03:58]} 13.
Bc2 {[%emt 0:08:24]} Nb8 {[%emt 0:18:00]} 14. b4 {[%emt 0:07:08]} Nbd7 {
[%emt 0:04:39]} 15. Bb2 {[%emt 0:00:41]} Nb6 {[%emt 0:12:17]} 16. c4 {[%emt 0:
14:28]} bxc4 {[%emt 0:10:17]} 17. dxe5 {[%emt 0:04:49]} dxe5 {[%emt 0:00:06]}
18. Bxe5 {[%emt 0:05:51]} c5 {[%emt 0:00:59]} 19. Bc3 {[%emt 0:03:24]} Re6 {
[%emt 0:07:07]} 20. Rb1 {[%emt 0:07:04]} Qc7 {[%emt 0:03:18]} 21. Qc1 {[%emt 0:
07:18]} Rae8 {[%emt 0:03:39]} 22. b5 {[%emt 0:01:53]} axb5 {[%emt 0:02:40]} 23.
Rxb5 {[%emt 0:01:43]} Bc6 {[%emt 0:02:24]} 24. Rb1 {[%emt 0:01:55]} Qa7 {
[%emt 0:01:50]} 25. Bxf6 {[%emt 0:03:31]} Rxf6 {[%emt 0:00:12]} 26. e5 {
[%emt 0:00:12]} Rfe6 {[%emt 0:02:53]} 27. Bf5 {[%emt 0:01:59]} R6e7 {[%emt 0:
00:40]} 28. e6 {[%emt 0:00:48]} fxe6 {[%emt 0:01:22]} 29. Bg6 {[%emt 0:00:37]}
Rd8 {[%emt 0:02:11]} 30. Ne5 {[%emt 0:01:05]} Bd5 {[%emt 0:00:10]} 31. Qc2 {
[%emt 0:02:45]} c3 {[%emt 0:03:35]} 32. Bh7+ {[%emt 0:02:20]} Kh8 {[%emt 0:00:
03]} 33. Ng6+ {[%emt 0:00:03]} Kxh7 {[%emt 0:00:04]} 34. Nxe7+ {[%emt 0:00:04]}
Kh8 {[%emt 0:00:06]} 35. Ng6+ {[%emt 0:00:09]} Kg8 {[%emt 0:00:04]} 36. Qxc3 {
[%emt 0:01:09]} Na4 {[%emt 0:00:31]} 37. Qe3 {[%emt 0:02:21]} Qa8 {[%emt 0:00:
04]} 38. Rbc1 {[%emt 0:03:13]} Bxg2 {[%emt 0:02:19]} 39. Qxe6+ 1-0

[Event "32nd Open Cappelle-la-Grande"]
[Site "Cappelle-la-Grande"]
[Date "2016.02.18"]
[Round "7"]
[White "Jussupow, Artur"]
[Black "Bauer, Christian"]
[Result "1/2-1/2"]
[ECO "E33"]
[WhiteElo "2578"]
[BlackElo "2631"]
[PlyCount "40"]
[EventDate "2016.??.??"]
[EventCountry "FRA"]
[TimeControl "40/5400+30:1800+30"]

1. d4 {[%emt 0:00:00]} Nf6 {[%emt 0:00:35]} 2. c4 {[%emt 0:00:00]} Nc6 {
[%emt 0:02:12]} 3. Nf3 {[%emt 0:07:04]} e6 {[%emt 0:00:59]} 4. Nc3 {[%emt 0:02:
34]} Bb4 {[%emt 0:00:21]} 5. Qc2 {[%emt 0:01:55]} d6 {[%emt 0:00:41]} 6. Bd2 {
[%emt 0:00:38]} O-O {[%emt 0:02:37]} 7. a3 {[%emt 0:03:08]} Bxc3 {[%emt 0:00:
09]} 8. Bxc3 {[%emt 0:00:06]} Qe7 {[%emt 0:03:52]} 9. g3 {[%emt 0:10:36]} a5 {
[%emt 0:15:18]} 10. b3 {[%emt 0:02:31]} e5 {[%emt 0:04:04]} 11. dxe5 {[%emt 0:
18:24]} dxe5 {[%emt 0:02:12]} 12. Bg2 {[%emt 0:00:05]} e4 {[%emt 0:12:13]} 13.
Nd4 {[%emt 0:09:08]} e3 {[%emt 0:20:27]} 14. f3 {[%emt 0:01:52]} Nxd4 {[%emt 0:
03:54]} 15. Bxd4 {[%emt 0:00:06]} c5 {[%emt 0:02:49]} 16. Bc3 {[%emt 0:02:40]}
a4 {[%emt 0:03:03]} 17. O-O {[%emt 0:03:03]} Qe6 {[%emt 0:06:06]} 18. Rad1 {
[%emt 0:16:21]} Re8 {[%emt 0:03:52]} 19. f4 {[%emt 0:02:53]} Qa6 {[%emt 0:02:
59]} 20. f5 {[%emt 0:05:10]} axb3 {[%emt 0:02:20]} 1/2-1/2

[Event "32nd Open Cappelle-la-Grande"]
[Site "Cappelle-la-Grande"]
[Date "2016.02.18"]
[Round "7"]
[White "Feller, Sebastien"]
[Black "Miron, Lucian-Costin"]
[Result "1/2-1/2"]
[ECO "C90"]
[WhiteElo "2610"]
[BlackElo "2496"]
[PlyCount "84"]
[EventDate "2016.??.??"]
[EventCountry "FRA"]
[TimeControl "40/5400+30:1800+30"]

1. e4 {[%emt 0:00:23]} e5 {[%emt 0:03:05]} 2. Nf3 {[%emt 0:09:56]} Nc6 {
[%emt 0:00:10]} 3. Bb5 {[%emt 0:00:07]} a6 {[%emt 0:00:27]} 4. Ba4 {[%emt 0:00:
04]} Nf6 {[%emt 0:00:29]} 5. O-O {[%emt 0:00:07]} Be7 {[%emt 0:00:11]} 6. Re1 {
[%emt 0:00:06]} b5 {[%emt 0:00:20]} 7. Bb3 {[%emt 0:00:06]} d6 {[%emt 0:00:10]}
8. a4 {[%emt 0:00:06]} Bg4 {[%emt 0:02:51]} 9. c3 {[%emt 0:00:25]} O-O {
[%emt 0:03:16]} 10. h3 {[%emt 0:00:14]} Bh5 {[%emt 0:00:54]} 11. d3 {[%emt 0:
01:05]} Na5 {[%emt 0:01:06]} 12. Bc2 {[%emt 0:00:06]} b4 {[%emt 0:00:07]} 13.
Nbd2 {[%emt 0:05:26]} Rb8 {[%emt 0:14:11]} 14. Nf1 {[%emt 0:26:30]} Nd7 {
[%emt 0:14:52]} 15. g4 {[%emt 0:07:45]} Bg6 {[%emt 0:00:17]} 16. Ng3 {[%emt 0:
00:13]} c5 {[%emt 0:13:40]} 17. Qe2 {[%emt 0:16:56]} Re8 {[%emt 0:06:43]} 18.
Be3 {[%emt 0:05:03]} Nf8 {[%emt 0:02:59]} 19. d4 {[%emt 0:01:55]} exd4 {
[%emt 0:15:39]} 20. cxd4 {[%emt 0:00:18]} Bf6 {[%emt 0:00:30]} 21. Rad1 {
[%emt 0:01:27]} Qc8 {[%emt 0:00:41]} 22. dxc5 {[%emt 0:12:12]} dxc5 {[%emt 0:
00:46]} 23. Rd5 {[%emt 0:00:05]} Ne6 {[%emt 0:03:47]} 24. h4 {[%emt 0:00:30]}
h6 {[%emt 0:03:58]} 25. h5 {[%emt 0:02:47]} Bh7 {[%emt 0:00:07]} 26. e5 {
[%emt 0:00:30]} Bxc2 {[%emt 0:00:07]} 27. Qxc2 {[%emt 0:00:18]} Qc6 {[%emt 0:
02:13]} 28. Red1 {[%emt 0:03:50]} Be7 {[%emt 0:03:24]} 29. Nf5 {[%emt 0:02:36]}
Nc7 {[%emt 0:01:40]} 30. Nxe7+ {[%emt 0:00:27]} Rxe7 {[%emt 0:00:08]} 31. Rd8+
{[%emt 0:02:11]} Rxd8 {[%emt 0:01:30]} 32. Rxd8+ {[%emt 0:00:06]} Re8 {[%emt 0:
00:04]} 33. Rxe8+ {[%emt 0:01:32]} Nxe8 {[%emt 0:00:06]} 34. Qxc5 {[%emt 0:00:
41]} Qxf3 {[%emt 0:00:19]} 35. Qxa5 {[%emt 0:00:04]} Qxg4+ {[%emt 0:00:12]} 36.
Kf1 {[%emt 0:00:04]} Qd1+ {[%emt 0:02:55]} 37. Kg2 {[%emt 0:00:06]} Qg4+ {
[%emt 0:00:05]} 38. Kf1 {[%emt 0:00:03]} Qxh5 {[%emt 0:04:07]} 39. Qxa6 {
[%emt 0:00:07]} Qd1+ {[%emt 0:00:35]} 40. Kg2 {[%emt 0:00:00]} Qg4+ {[%emt 0:
00:00]} 41. Kf1 {[%emt 0:10:01]} Qd1+ {[%emt 0:00:33]} 42. Kg2 {[%emt 0:00:05]}
Qg4+ 1/2-1/2

[Event "32nd Open Cappelle-la-Grande"]
[Site "Cappelle-la-Grande"]
[Date "2016.02.18"]
[Round "7"]
[White "Kravtsiv, Martyn"]
[Black "Spraggett, Kevin"]
[Result "1/2-1/2"]
[ECO "B40"]
[WhiteElo "2636"]
[BlackElo "2522"]
[PlyCount "61"]
[EventDate "2016.??.??"]
[EventCountry "FRA"]
[TimeControl "40/5400+30:1800+30"]

1. e4 {[%emt 0:00:00]} c5 {[%emt 0:00:00]} 2. Nf3 {[%emt 0:00:07]} e6 {[%emt 0:
00:08]} 3. g3 {[%emt 0:00:11]} Nc6 {[%emt 0:01:02]} 4. Bg2 {[%emt 0:00:36]} Nf6
{[%emt 0:00:15]} 5. Qe2 {[%emt 0:00:54]} d5 {[%emt 0:03:11]} 6. exd5 {[%emt 0:
01:51]} Nxd5 {[%emt 0:00:07]} 7. O-O {[%emt 0:00:54]} Be7 {[%emt 0:00:09]} 8.
Rd1 {[%emt 0:00:51]} Qb6 {[%emt 0:01:33]} 9. c3 {[%emt 0:01:40]} O-O {[%emt 0:
00:58]} 10. d4 {[%emt 0:00:26]} cxd4 {[%emt 0:04:31]} 11. Nxd4 {[%emt 0:00:06]}
Nxd4 {[%emt 0:00:05]} 12. Rxd4 {[%emt 0:00:06]} Re8 {[%emt 0:01:04]} 13. Rd1 {
[%emt 0:07:51]} Bd7 {[%emt 0:06:46]} 14. c4 {[%emt 0:02:48]} Qa6 {[%emt 0:02:
48]} 15. b3 {[%emt 0:05:20]} Bf6 {[%emt 0:02:21]} 16. Bb2 {[%emt 0:05:41]} Bxb2
{[%emt 0:00:49]} 17. Qxb2 {[%emt 0:00:09]} Nf6 {[%emt 0:00:05]} 18. Nc3 {
[%emt 0:03:04]} Bc6 {[%emt 0:00:23]} 19. Rd6 {[%emt 0:17:10]} Red8 {[%emt 0:01:
09]} 20. Rad1 {[%emt 0:01:45]} Rxd6 {[%emt 0:00:31]} 21. Rxd6 {[%emt 0:00:07]}
Ne8 {[%emt 0:00:10]} 22. Rd3 {[%emt 0:01:30]} Bxg2 {[%emt 0:00:27]} 23. Kxg2 {
[%emt 0:00:04]} Qc6+ {[%emt 0:00:21]} 24. f3 {[%emt 0:00:57]} a6 {[%emt 0:10:
18]} 25. Qd2 {[%emt 0:01:14]} b5 {[%emt 0:00:44]} 26. cxb5 {[%emt 0:01:20]}
axb5 {[%emt 0:00:02]} 27. Rd8 {[%emt 0:00:31]} Rxd8 {[%emt 0:02:10]} 28. Qxd8 {
[%emt 0:00:08]} h6 {[%emt 0:00:29]} 29. Ne2 {[%emt 0:15:17]} Kf8 {[%emt 0:04:
59]} 30. Qa5 {[%emt 0:07:03]} Nc7 {[%emt 0:04:48]} 31. Qb4+ {[%emt 0:08:58]}
1/2-1/2

[Event "32nd Open Cappelle-la-Grande"]
[Site "Cappelle-la-Grande"]
[Date "2016.02.18"]
[Round "7"]
[White "Ulybin, Mikhail"]
[Black "Vovk, Andrey"]
[Result "0-1"]
[ECO "D85"]
[WhiteElo "2519"]
[BlackElo "2632"]
[PlyCount "100"]
[EventDate "2016.??.??"]
[EventCountry "FRA"]
[TimeControl "40/5400+30:1800+30"]

1. d4 {[%emt 0:05:56]} Nf6 {[%emt 0:00:08]} 2. c4 {[%emt 0:00:41]} g6 {[%emt 0:
00:27]} 3. Nc3 {[%emt 0:00:50]} d5 {[%emt 0:00:23]} 4. cxd5 {[%emt 0:02:12]}
Nxd5 {[%emt 0:00:05]} 5. Bd2 {[%emt 0:01:32]} Nb6 {[%emt 0:06:18]} 6. e3 {
[%emt 0:02:01]} Bg7 {[%emt 0:00:06]} 7. f4 {[%emt 0:02:14]} N8d7 {[%emt 0:00:
18]} 8. b4 {[%emt 0:12:30]} Nf6 {[%emt 0:03:49]} 9. Nf3 {[%emt 0:01:47]} Bf5 {
[%emt 0:04:29]} 10. Rc1 {[%emt 0:03:35]} O-O {[%emt 0:02:05]} 11. Be2 {[%emt 0:
07:58]} Ne4 {[%emt 0:03:48]} 12. Nxe4 {[%emt 0:04:45]} Bxe4 {[%emt 0:00:04]}
13. O-O {[%emt 0:01:15]} c6 {[%emt 0:09:03]} 14. a4 {[%emt 0:03:39]} h6 {
[%emt 0:15:10]} 15. b5 {[%emt 0:25:39]} cxb5 {[%emt 0:09:07]} 16. axb5 {
[%emt 0:00:44]} Nd5 {[%emt 0:00:32]} 17. Ne5 {[%emt 0:05:35]} Nf6 {[%emt 0:09:
27]} 18. Qb3 {[%emt 0:03:55]} e6 {[%emt 0:06:11]} 19. Qa3 {[%emt 0:02:54]} Nd5
{[%emt 0:03:01]} 20. Ba5 {[%emt 0:01:48]} b6 {[%emt 0:00:10]} 21. Bd2 {[%emt 0:
03:34]} Re8 {[%emt 0:08:33]} 22. Nc6 {[%emt 0:02:11]} Qd7 {[%emt 0:00:28]} 23.
Bd3 {[%emt 0:01:14]} Bf8 {[%emt 0:01:13]} 24. Qb3 {[%emt 0:00:09]} Nf6 {
[%emt 0:00:19]} 25. Bxe4 {[%emt 0:02:03]} Nxe4 {[%emt 0:00:03]} 26. Bb4 {
[%emt 0:01:10]} Bxb4 {[%emt 0:01:07]} 27. Qxb4 {[%emt 0:00:08]} a6 {[%emt 0:00:
22]} 28. bxa6 {[%emt 0:00:34]} Rxa6 {[%emt 0:00:09]} 29. Rc2 {[%emt 0:00:59]}
Qd6 {[%emt 0:02:15]} 30. Qxd6 {[%emt 0:00:46]} Nxd6 {[%emt 0:00:04]} 31. Kf2 {
[%emt 0:00:18]} Ra3 {[%emt 0:01:03]} 32. Rb1 {[%emt 0:00:30]} Ne4+ {[%emt 0:00:
49]} 33. Kf3 {[%emt 0:00:17]} Nc3 {[%emt 0:00:10]} 34. Re1 {[%emt 0:00:44]} Nd5
{[%emt 0:00:56]} 35. Ne5 {[%emt 0:00:30]} b5 {[%emt 0:00:34]} 36. g3 {[%emt 0:
00:41]} Rea8 {[%emt 0:02:19]} 37. Nd7 {[%emt 0:00:25]} R8a4 {[%emt 0:01:48]}
38. Ke4 {[%emt 0:00:45]} Rb4 {[%emt 0:05:48]} 39. Nc5 {[%emt 0:00:23]} Kf8 {
[%emt 0:02:35]} 40. h3 {[%emt 0:00:00]} Ke7 {[%emt 0:00:00]} 41. g4 {[%emt 0:
28:14]} f5+ {[%emt 0:15:35]} 42. gxf5 {[%emt 0:01:31]} gxf5+ {[%emt 0:00:03]}
43. Kf3 {[%emt 0:00:33]} Rxd4 {[%emt 0:00:20]} 44. Kf2 {[%emt 0:00:35]} Rc4 {
[%emt 0:00:11]} 45. Rxc4 {[%emt 0:00:54]} bxc4 {[%emt 0:00:04]} 46. e4 {
[%emt 0:00:31]} Nxf4 {[%emt 0:00:09]} 47. exf5 {[%emt 0:00:13]} Ra5 {[%emt 0:
00:19]} 48. f6+ {[%emt 0:01:18]} Kf7 {[%emt 0:00:27]} 49. Kf3 {[%emt 0:00:54]}
Rxc5 {[%emt 0:01:36]} 50. Kxf4 {[%emt 0:00:05]} c3 {[%emt 0:00:32]} 0-1

[Event "32nd Open Cappelle-la-Grande"]
[Site "Cappelle-la-Grande"]
[Date "2016.02.18"]
[Round "7"]
[White "Blomqvist, Erik"]
[Black "Krasenkow, Michal"]
[Result "1/2-1/2"]
[ECO "B33"]
[WhiteElo "2515"]
[BlackElo "2612"]
[PlyCount "68"]
[EventDate "2016.??.??"]
[EventCountry "FRA"]
[TimeControl "40/5400+30:1800+30"]

1. e4 {[%emt 0:00:00]} c5 {[%emt 0:00:00]} 2. Nf3 {[%emt 0:00:00]} Nc6 {
[%emt 0:00:00]} 3. d4 {[%emt 0:00:00]} cxd4 {[%emt 0:00:00]} 4. Nxd4 {[%emt 0:
00:00]} Nf6 {[%emt 0:00:00]} 5. Nc3 {[%emt 0:00:04]} e5 {[%emt 0:00:00]} 6.
Ndb5 {[%emt 0:00:08]} d6 {[%emt 0:00:00]} 7. Bg5 {[%emt 0:00:06]} a6 {[%emt 0:
00:00]} 8. Na3 {[%emt 0:00:08]} b5 {[%emt 0:00:00]} 9. Nd5 {[%emt 0:00:11]} Be7
{[%emt 0:00:00]} 10. Bxf6 {[%emt 0:00:10]} Bxf6 {[%emt 0:00:00]} 11. c3 {
[%emt 0:00:15]} Ne7 {[%emt 0:00:05]} 12. Nxf6+ {[%emt 0:00:13]} gxf6 {[%emt 0:
00:03]} 13. Bd3 {[%emt 0:00:16]} d5 {[%emt 0:00:09]} 14. Qe2 {[%emt 0:00:33]}
Be6 {[%emt 0:00:04]} 15. Nc2 {[%emt 0:12:09]} Qb6 {[%emt 0:02:10]} 16. Ne3 {
[%emt 0:07:44]} Rd8 {[%emt 0:09:05]} 17. O-O {[%emt 0:05:34]} Rg8 {[%emt 0:03:
17]} 18. Rfd1 {[%emt 0:07:43]} dxe4 {[%emt 0:23:31]} 19. Bxe4 {[%emt 0:00:09]}
f5 {[%emt 0:00:11]} 20. Rxd8+ {[%emt 0:01:24]} Qxd8 {[%emt 0:00:56]} 21. Rd1 {
[%emt 0:00:39]} Qc8 {[%emt 0:08:32]} 22. Bd5 {[%emt 0:07:39]} f4 {[%emt 0:01:
04]} 23. Bxe6 {[%emt 0:00:09]} Qxe6 {[%emt 0:00:08]} 24. Nc2 {[%emt 0:03:31]}
f5 {[%emt 0:08:01]} 25. Qf3 {[%emt 0:30:13]} Qh6 {[%emt 0:07:48]} 26. Qb7 {
[%emt 0:03:33]} Qg5 {[%emt 0:03:06]} 27. Nb4 {[%emt 0:05:38]} e4 {[%emt 0:08:
23]} 28. g3 {[%emt 0:00:05]} fxg3 {[%emt 0:00:56]} 29. hxg3 {[%emt 0:00:07]} f4
{[%emt 0:06:19]} 30. Qxe4 {[%emt 0:06:40]} fxg3 {[%emt 0:00:24]} 31. Qa8+ {
[%emt 0:00:40]} Kf7 {[%emt 0:00:07]} 32. Qf3+ {[%emt 0:00:05]} Ke8 {[%emt 0:03:
40]} 33. Qa8+ {[%emt 0:00:13]} Kf7 {[%emt 0:00:05]} 34. Qf3+ {[%emt 0:00:04]}
Ke8 {[%emt 0:00:47]} 1/2-1/2

[Event "32nd Open Cappelle-la-Grande"]
[Site "Cappelle-la-Grande"]
[Date "2016.02.18"]
[Round "7"]
[White "Troff, Kayden W"]
[Black "Neiksans, Arturs"]
[Result "1-0"]
[ECO "E15"]
[WhiteElo "2511"]
[BlackElo "2607"]
[PlyCount "143"]
[EventDate "2016.??.??"]
[EventCountry "FRA"]
[TimeControl "40/5400+30:1800+30"]

1. d4 {[%emt 0:00:00]} Nf6 {[%emt 0:00:00]} 2. c4 {[%emt 0:00:00]} e6 {[%emt 0:
00:00]} 3. Nf3 {[%emt 0:00:00]} b6 {[%emt 0:00:00]} 4. g3 {[%emt 0:00:03]} Ba6
{[%emt 0:00:17]} 5. Qc2 {[%emt 0:00:18]} c5 {[%emt 0:01:27]} 6. d5 {[%emt 0:00:
38]} exd5 {[%emt 0:00:11]} 7. cxd5 {[%emt 0:00:13]} Bb7 {[%emt 0:00:33]} 8. Bg2
{[%emt 0:01:37]} Nxd5 {[%emt 0:00:07]} 9. O-O {[%emt 0:00:11]} Be7 {[%emt 0:00:
30]} 10. Rd1 {[%emt 0:00:30]} Nc6 {[%emt 0:00:30]} 11. Qa4 {[%emt 0:00:50]} Nf6
{[%emt 0:05:33]} 12. Nh4 {[%emt 0:00:43]} O-O {[%emt 0:05:53]} 13. Nf5 {
[%emt 0:00:28]} d5 {[%emt 0:00:57]} 14. Nc3 {[%emt 0:00:22]} Nd4 {[%emt 0:00:
47]} 15. Nxd4 {[%emt 0:00:44]} cxd4 {[%emt 0:00:05]} 16. Rxd4 {[%emt 0:00:19]}
Bc5 {[%emt 0:01:37]} 17. Rd3 {[%emt 0:00:17]} h6 {[%emt 0:19:18]} 18. Be3 {
[%emt 0:04:53]} Re8 {[%emt 0:07:24]} 19. Bxc5 {[%emt 0:09:54]} bxc5 {[%emt 0:
00:31]} 20. Rad1 {[%emt 0:03:19]} Qb6 {[%emt 0:04:17]} 21. Qc2 {[%emt 0:02:34]}
Rab8 {[%emt 0:14:36]} 22. Bxd5 {[%emt 0:13:44]} Bxd5 {[%emt 0:05:09]} 23. Nxd5
{[%emt 0:00:44]} Qxb2 {[%emt 0:00:09]} 24. R3d2 {[%emt 0:02:38]} Qxc2 {[%emt 0:
11:54]} 25. Nxf6+ {[%emt 0:00:14]} gxf6 {[%emt 0:00:04]} 26. Rxc2 {[%emt 0:00:
06]} Re7 {[%emt 0:01:34]} 27. Rd6 {[%emt 0:05:22]} Rb6 {[%emt 0:04:05]} 28.
Rd8+ {[%emt 0:00:06]} Kg7 {[%emt 0:00:05]} 29. Rc8 {[%emt 0:00:05]} Ra6 {
[%emt 0:10:09]} 30. R8xc5 {[%emt 0:01:01]} Re5 {[%emt 0:00:39]} 31. R5c4 {
[%emt 0:12:11]} f5 {[%emt 0:00:06]} 32. Rf4 {[%emt 0:06:34]} Kg6 {[%emt 0:01:
04]} 33. a4 {[%emt 0:03:10]} Re4 {[%emt 0:00:48]} 34. Rxe4 {[%emt 0:00:24]}
fxe4 {[%emt 0:00:04]} 35. Rc4 {[%emt 0:00:13]} f5 {[%emt 0:00:11]} 36. Kg2 {
[%emt 0:00:39]} Kg5 {[%emt 0:00:25]} 37. h3 {[%emt 0:01:02]} Ra5 {[%emt 0:01:
43]} 38. Rc6 {[%emt 0:11:28]} Rxa4 {[%emt 0:03:43]} 39. h4+ {[%emt 0:00:33]}
Kh5 {[%emt 0:00:05]} 40. Rf6 {[%emt 0:00:00]} Ra2 {[%emt 0:00:00]} 41. Rxf5+ {
[%emt 0:04:18]} Kg6 {[%emt 0:00:33]} 42. Re5 {[%emt 0:00:26]} Rxe2 {[%emt 0:00:
16]} 43. Kf1 {[%emt 0:00:10]} Ra2 {[%emt 0:03:42]} 44. Rxe4 {[%emt 0:00:17]} h5
{[%emt 0:01:20]} 45. Re6+ {[%emt 0:03:24]} Kg7 {[%emt 0:00:23]} 46. Re3 {
[%emt 0:00:11]} Kg6 {[%emt 0:00:44]} 47. Kg2 {[%emt 0:00:07]} a5 {[%emt 0:01:
29]} 48. Kf3 {[%emt 0:02:23]} a4 {[%emt 0:00:24]} 49. Re6+ {[%emt 0:02:12]} Kg7
{[%emt 0:00:28]} 50. Ra6 {[%emt 0:02:16]} a3 {[%emt 0:00:46]} 51. Ke3 {[%emt 0:
00:10]} Kh7 {[%emt 0:02:51]} 52. f3 {[%emt 0:05:46]} Rg2 {[%emt 0:00:43]} 53.
Kf4 {[%emt 0:01:30]} a2 {[%emt 0:00:06]} 54. g4 {[%emt 0:01:17]} hxg4 {[%emt 0:
05:48]} 55. fxg4 {[%emt 0:00:15]} Rb2 {[%emt 0:00:29]} 56. h5 {[%emt 0:05:01]}
Kg7 {[%emt 0:04:21]} 57. Kg5 {[%emt 0:02:05]} Rb5+ {[%emt 0:00:19]} 58. Kh4 {
[%emt 0:00:08]} Rb2 {[%emt 0:00:03]} 59. h6+ {[%emt 0:00:33]} Kf7 {[%emt 0:03:
24]} 60. Kh5 {[%emt 0:00:15]} Rh2+ {[%emt 0:10:44]} 61. Kg5 {[%emt 0:00:12]}
Re2 {[%emt 0:00:03]} 62. Ra7+ {[%emt 0:01:25]} Re7 {[%emt 0:00:05]} 63. Rxa2 {
[%emt 0:00:05]} Re5+ {[%emt 0:00:03]} 64. Kf4 {[%emt 0:00:09]} Rb5 {[%emt 0:00:
04]} 65. Ra6 {[%emt 0:00:06]} Rb1 {[%emt 0:03:06]} 66. Kg5 {[%emt 0:01:08]}
Rb5+ {[%emt 0:00:14]} 67. Kh4 {[%emt 0:00:05]} Rb1 {[%emt 0:00:04]} 68. Kh5 {
[%emt 0:00:04]} Rb5+ {[%emt 0:01:10]} 69. g5 {[%emt 0:00:09]} Rc5 {[%emt 0:00:
04]} 70. Ra8 {[%emt 0:00:36]} Rc1 {[%emt 0:00:43]} 71. g6+ {[%emt 0:00:05]} Kf6
{[%emt 0:00:06]} 72. Rf8+ {[%emt 0:00:07]} 1-0